Cogmind - Beta 16 @@@ ROGUE MODE // 2025.12.19 @ 19:30:53 Player: f3-rnm Result: Destroyed by G-73 Enforcer with Phase Gun Performance ------------- Evolutions (8) 4000 Regions Visited (17) 3400 Robots Destroyed (132) 660 Value Destroyed (5471) 5471 Prototype IDs (44) 880 Alien Tech Used (2) 400 Bonus (5555) 5555 TOTAL SCORE: 20366 Bonus ------- High Alert Combat Kills 500 Follower Combat Kills 1345 Network Hubs Disabled 200 Registered with UFD 300 Met Optimus in HQ 500 Met Zhirov 300 Met R17 at Cetus 500 Acquired SGEMP 2000 Friendly Fire -90 Cogmind --------- Core Integrity 0/1450 Matter 167/300 Energy 50/100 System Corruption 9% Temperature Cool (9) Movement Core (50) Location -2/Research Parts ------- > --- POWER (2) -------- (None) > --- PROPULSION (9) --- (None) > --- UTILITY (8) ------ Core Analyzer > --- WEAPON (4) ------- (None) > --- INVENTORY (5) ---- Long-range Tractor Beam Cooled Nova Cannon Omega Cannon Neutron Missile Launcher Peak State ------------ > --- POWER ------------ Light Particle Reactor > --- PROPULSION ------- Myomer Leg Cooled Nuclear Pulse Thruster Cooled Nuclear Pulse Thruster Field Propulsion Array Field Propulsion Array Improved Diametric Drive > --- UTILITY ---------- Advanced Cryofiber Web IFF Parser Improved Melee Analysis Suite Core Analyzer Improved Transmission Jammer Centrium Medium Armor Plating Hacking Suite Advanced Hacking Suite > --- WEAPON ----------- Enhanced Nova Cannon Cooled Nova Cannon Omega Cannon > --- INVENTORY -------- Long-range Tractor Beam Neutron Missile Launcher Large Botcube [Rating: 161] Favorites ----------- Power Ion Engine Engine Ion Engine Power Core Light Fission Core Reactor Quantum Reactor Propulsion Armored Wheel Treads Improved Medium Treads Leg Aluminum Leg Wheel Armored Wheel Flight Unit Cooled Nuclear Pulse Thruster Utility High-capacity Storage Unit Device Advanced Sensor Array Storage High-capacity Storage Unit Processor Core Analyzer Hackware Hacking Suite Protection Improved Utility Shielding Weapon Enhanced Coil Gun Energy Gun Riot Gun Energy Cannon Heavy Plasma Cannon Ballistic Gun Enhanced Coil Gun Ballistic Cannon Battle Cannon Launcher Neutron Missile Launcher Special Weapon CPS Tube Build | -11 -10 -10 -8 -6 -5 -5 -5 -5 -5 -4 -4 -4 -4 -3 -3 -3 -2 ------- Run | Yrd Mat Sub Scr Fac Fac Ext Cet Arc Hub Fac Upp Upp Zhi Pro Res Tes Res Slots Evolved 16 | . . . . 8 2 . . . . 2 . . . . 2 . 2 Power 1 | . . . . . . . . . . . . . . . 1 . . Propulsion 7 | . . . . 2 . . . . . 2 . . . . 1 . 2 Utility 6 | . . . . 5 1 . . . . . . . . . . . . Weapon 2 | . . . . 1 1 . . . . . . . . . . . . Parts Attached 119 | 6 1 12 6 14 19 1 4 1 8 1 8 8 6 1 9 10 4 Power 10 | 1 . 1 1 . 2 . 1 . 1 . 1 . 1 . . 1 . Engine 2 | 1 . 1 . . . . . . . . . . . . . . . Core 2 | . . . 1 . 1 . . . . . . . . . . . . Reactor 6 | . . . . . 1 . 1 . 1 . 1 . 1 . . 1 . Propulsion 28 | 2 . 3 1 2 4 . 1 . 2 . 1 2 3 . 3 3 1 Treads 6 | 2 . . . . 2 . 1 . 1 . . . . . . . . Leg 7 | . . 1 . . . . . . . . 1 2 . . . 2 1 Wheel 8 | . . 2 1 2 2 . . . 1 . . . . . . . . Hover . | . . . . . . . . . . . . . . . . . . Flight 7 | . . . . . . . . . . . . . 3 . 3 1 . Utility 36 | 1 1 . 2 6 5 1 1 1 1 . 2 6 2 . 4 1 2 Device 13 | . . . . 2 2 . . 1 1 . 1 1 . . 2 1 2 Storage 4 | 1 1 . . . . . . . . . . 1 . . 1 . . Processor 9 | . . . 1 3 1 . . . . . 1 3 . . . . . Hackware 3 | . . . 1 . . . . . . . . 1 1 . . . . Protection 7 | . . . . 1 2 1 1 . . . . . 1 . 1 . . Artifact . | . . . . . . . . . . . . . . . . . . Weapon 45 | 2 . 8 2 6 8 . 1 . 4 1 4 . . 1 2 5 1 Energy Gun 8 | . . 2 . 1 . . . . 1 1 3 . . . . . . Energy Cannon 8 | . . 1 1 1 1 . . . . . 1 . . . . 2 1 Ballistic Gun 18 | 2 . 4 . 1 7 . 1 . 2 . . . . 1 . . . Ballistic Cannon 6 | . . 1 1 2 . . . . . . . . . . 1 1 . Launcher 4 | . . . . 1 . . . . . . . . . . 1 2 . Special Weapon 1 | . . . . . . . . . 1 . . . . . . . . Impact Weapon . | . . . . . . . . . . . . . . . . . . Slashing Weapon . | . . . . . . . . . . . . . . . . . . Piercing Weapon . | . . . . . . . . . . . . . . . . . . Special Melee Weapon . | . . . . . . . . . . . . . . . . . . Unidentified Prototypes 24 | . . . . 2 2 . 3 . 2 1 . . 4 . . 10 . Parts Lost 44 | . . 6 . 1 1 . . . 9 2 6 2 . . 3 1 13 Power 4 | . . 1 . . 1 . . . . . 1 . . . . . 1 Propulsion 12 | . . 2 . . . . . . 2 1 1 . . . 1 . 5 Utility 15 | . . . . . . . . . 3 . 1 2 . . 1 1 7 Weapon 13 | . . 3 . 1 . . . . 4 1 3 . . . 1 . . Highest Loss Streak 8 | . . 2 . 1 1 . . . 5 1 6 1 . . 2 1 8 To Critical Strikes . | . . . . . . . . . . . . . . . . . . Average Backups 12 | 1 4 10 15 15 16 17 15 16 15 3 1 2 3 3 2 2 2 Power 1 | . 1 1 1 1 1 1 1 2 2 1 . . . . . . . Propulsion 1 | . 1 1 . . 2 3 3 3 2 . . . . . . . . Utility 3 | . 1 2 6 4 4 5 3 2 1 . . 1 1 1 1 . . Weapon 4 | . . 4 5 5 5 6 5 6 6 1 . 1 1 1 . 1 1 Tool/Special . | . . . . . . . . . . . . . . . . . . Unused Backups 51 | . . . 11 8 4 . 17 . 9 . . . . . 1 . 1 Power 7 | . . . 3 . 2 . 1 . 1 . . . . . . . . Propulsion 9 | . . . . 2 1 . 4 . 2 . . . . . . . . Utility 18 | . . . 5 3 1 . 5 . 2 . . . . . 1 . 1 Weapon 15 | . . . 3 2 . . 7 . 3 . . . . . . . . Tool/Special 2 | . . . . 1 . . . . 1 . . . . . . . . Average Slot Usage (%) 79 | . 85 84 76 84 97 100 94 94 86 11 27 25 41 57 60 63 60 Engine 5 | . 14 13 11 . . . . . . . . . . . . . . Core 1 | . . . 2 6 2 5 . . . . . . . . . . . Reactor 1 | . . . . . 2 . 4 5 4 . 2 . 1 5 4 1 3 Treads 5 | . 28 11 . . 9 11 5 5 5 . . . . . . . . Leg 2 | . . 6 . . . . . . . . 2 5 7 . . . 2 Wheel 9 | . . 10 16 15 10 11 11 11 8 3 . . . . . . . Flight 1 | . . . . . . . . . . . . . 4 15 19 22 16 Device 4 | . . . . 7 11 11 11 11 9 5 7 . . 5 4 5 7 Storage 8 | . 14 14 14 6 5 5 5 5 4 . . 3 3 . . . . Processor 9 | . . . 3 24 17 17 17 17 16 . 3 13 15 15 12 9 7 Protection 4 | . . . . 4 10 11 11 10 9 . . . 1 2 2 4 3 Energy Gun 3 | . . 8 7 . . . . . . 3 6 . . . . . . Energy Cannon 2 | . . . 6 5 . . . . . . 2 . . . . 3 5 Ballistic Gun 12 | . 28 18 . 2 20 23 23 23 21 . . . . 3 2 . . Ballistic Cannon 3 | . . . 14 9 1 . . . . . . . . . 1 3 3 Peak Build Rating 161 | 6 7 13 33 72 94 94 115 115 120 18 50 37 62 68 121 145 161 Average Rating 54 | 4 6 9 23 64 89 94 110 114 109 15 31 24 39 62 91 118 122 On Entrance 54 | . 6 6 11 33 72 94 94 113 115 12 11 14 32 62 62 114 136 Avg Prop Armor Cover (%) 8 | . . 10 . 2 8 10 8 10 10 14 . . . . . 6 3 Naked Turns 7 | . . . . . . . . . 7 . . . . . . . . Heaviest Build 93 | 11 46 57 63 80 89 79 93 93 93 5 43 40 40 19 59 68 72 Greatest Support 80 | 40 40 40 28 46 38 24 80 24 24 3 15 50 50 18 57 55 49 Greatest Overweight (x) 6 | . 1 5 2 2 6 3 3 3 3 1 2 1 6 1 1 2 2 Average Overweight (x) 1 | . . 3 1 1 2 3 2 3 2 . . . . . . . . Largest Inventory Capacity 25 | 8 20 20 20 20 20 20 20 20 20 5 5 25 25 5 10 5 5 Average Capacity 17 | 7 16 20 20 20 20 20 20 20 19 5 5 18 20 5 5 5 5 Most Carried 20 | 2 7 15 20 20 20 20 20 20 20 5 5 5 5 5 8 5 5 Average Carried 14 | . 4 10 18 18 19 20 18 19 18 5 3 4 4 5 4 4 4 Final Capacity 25 | 8 20 20 20 20 20 20 20 20 5 5 5 25 5 5 5 5 5 Final Carried 20 | 2 7 15 20 19 20 20 18 20 5 5 4 5 5 5 5 5 5 Class Distribution -------------------- 48% | Mutant 13% | Skirmisher 9% | Commander-Skirmisher 7% | Commander-Tank 5% | Scavenger-Tank 4% | Hacker-Gunner 3% | Derelict-Mutant Dominant Class ---------------- Mutant | -10/Materials Mutant | -10/Subcaves Mutant | -8/Scraptown Tank | -6/Factory Skirmisher | -5/Factory Commander-Skirmisher | -5/Extension Commander-Tank | -5/Cetus Scavenger-Tank | -5/Archives Scavenger-Tank | -5/Hub_04(d) Mutant | -4/Factory Gunner | -4/Upper Caves Derelict-Mutant | -4/Upper Caves Derelict-Mutant | -4/Zhirov Derelict-Sprinter | -3/Proximity Caves Hacker-Sprinter | -3/Research Hacker-Gunner | -3/Testing Hacker-Gunner | -2/Research Resources | -11 -10 -10 -8 -6 -5 -5 -5 -5 -5 -4 -4 -4 -4 -3 -3 -3 -2 ----------- Run | Yrd Mat Sub Scr Fac Fac Ext Cet Arc Hub Fac Upp Upp Zhi Pro Res Tes Res Matter Collected 5551 | 133 75 783 146 560 1221 489 266 352 665 . 163 75 . 38 303 123 159 Remotely 229 | . . . . . 229 . . . . . . . . . . . . Salvage Created 6162 | . 75 267 . 342 1388 907 337 386 1094 . 494 . . . 282 259 331 Parts 302 | . 7 18 . 31 62 39 20 22 52 . 7 . . . 11 7 26 Haulers Intercepted 5 | . . . . . 1 1 . . 1 . . . . . . . 2 Recyclers Shooed 3 | . . . . 1 . 1 . . . . . . . . . . 1 Parts Field Recycled . | . . . . . . . . . . . . . . . . . . Retrieved Matter . | . . . . . . . . . . . . . . . . . . Parts Self-Destructed 29 | . . 23 . . . . . . . . 6 . . . . . . Prevented . | . . . . . . . . . . . . . . . . . . Parts Restored . | . . . . . . . . . . . . . . . . . . Kills | -11 -10 -10 -8 -6 -5 -5 -5 -5 -5 -4 -4 -4 -4 -3 -3 -3 -2 ------- Run | Yrd Mat Sub Scr Fac Fac Ext Cet Arc Hub Fac Upp Upp Zhi Pro Res Tes Res Combat Hostiles Destroyed 83 | . 2 9 . 8 20 12 4 1 10 . 4 . . . 7 1 5 Guns 61 | . 2 8 . . 20 12 4 1 10 . 2 . . . 2 . . Cannons 8 | . . 1 . 4 . . . . . . . . . . 2 1 . AOE 12 | . . . . 4 . . . . . . . . . . 3 . 5 Classes Destroyed 17 | . 1 3 . 6 2 1 1 1 1 . . . . . 1 . . Worker 11 | . . . . 2 4 . . . 3 . . . . . . . 2 Builder 12 | . . . . 2 1 2 . . 4 . . . . . . . 3 Tunneler 2 | . . . . 2 . . . . . . . . . . . . . Hauler 5 | . . . . . 1 1 . . 1 . . . . . . . 2 Recycler 5 | . . . . . 1 . . . 1 . . . . . . 2 1 Operator 8 | . . . . . . . . 7 1 . . . . . . . . Watcher 4 | . . . . 1 1 . 1 . 1 . . . . . . . . Swarmer 21 | . . 3 . 3 4 3 . . . . . . . . 3 . 5 Grunt 33 | . 2 . . 3 11 3 . . 7 . 4 . . . 3 . . Brawler 1 | . . . . . . . . . . . . . . . 1 . . Sentry 10 | . . . . 1 1 5 . 1 2 . . . . . . . . Programmer 6 | . . . . 1 4 . . . . . . . . . . 1 . Behemoth 1 | . . . . . . 1 . . . . . . . . . . . Cetus Guard 4 | . . . . . . . 4 . . . . . . . . . . Lightning 1 | . . . . . . . . . 1 . . . . . . . . Artisan 1 | . . 1 . . . . . . . . . . . . . . . Subdweller 6 | . . 6 . . . . . . . . . . . . . . . Packrat 3 | . . . . . . . . . . . 3 . . . . . . Thug 1 | . . . . . . . . 1 . . . . . . . . . Butcher 1 | . . . . . . . 1 . . . . . . . . . . Best Kill Streak 10 | . 2 2 . 7 7 2 4 6 7 . 3 . . . 4 1 10 Combat Bots Only 5 | . 2 2 . 3 5 2 3 1 4 . 4 . . . 4 1 5 Max Kills in Single Turn 6 | . 1 1 . 6 3 1 2 2 2 . 1 . . . 2 1 4 Gunslinging 1 | . . . . . 1 . . . 1 . . . . . . . . Exploded 3 | . . . . 3 . . . . . . . . . . 2 . 3 Melee . | . . . . . . . . . . . . . . . . . . Uniques/NPCs Destroyed . | . . . . . . . . . . . . . . . . . . Combat | -11 -10 -10 -8 -6 -5 -5 -5 -5 -5 -4 -4 -4 -4 -3 -3 -3 -2 -------- Run | Yrd Mat Sub Scr Fac Fac Ext Cet Arc Hub Fac Upp Upp Zhi Pro Res Tes Res Hostile Shots Fired 943 | . 7 137 . 62 73 13 27 6 104 8 55 90 . 21 53 63 224 Missed 398 | . . 55 . 22 31 4 11 4 20 . 20 37 . 17 30 26 121 Hits 545 | . 7 82 . 40 42 9 16 2 84 8 35 53 . 4 23 37 103 Melee 3 | . . . . . . . . . 2 . . . . . . 1 . Projectile 542 | . 7 82 . 40 42 9 16 2 82 8 35 53 . 4 23 36 103 Critical Strikes 35 | . . 2 . . 2 3 6 . 13 . 2 1 . . . 2 4 Actively Blocked 3 | . . . . . 1 . 1 . 1 . . . . . . . . Part Disruptions 2 | . . . . 1 . . . . 1 . . . . . . . . Damage Taken 12498 | . 77 1142 . 1129 1049 143 367 47 2731 190 715 791 . 68 520 1019 2510 Core 4021 | . 23 180 . 677 67 35 15 . 530 70 236 485 . . 98 155 1450 Absorbed by Shields 211 | . . . . . . 112 99 . . . . . . . . . . Reduced by Siege Mode 85 | . . . . . . . . . 85 . . . . . . . . Redirected to Shielding 111 | . . . . . 13 . 26 . 72 . . . . . . . . Regen/Repaired (Parts) 100 | . . . . . . . . . . . . . . . . 100 . Core Remaining (%) 45 | 100 . . 18 20 . . . . 35 . . . . 31 . 71 . Volleys Fired 315 | . 5 70 . 27 43 23 11 21 45 1 26 . . . 18 10 15 Largest 4 | . 2 2 . 3 4 4 4 4 4 1 4 . . . 2 2 3 Hottest 346 | . 40 110 . 171 120 120 125 125 130 60 346 . . . 133 200 270 Shots Fired 846 | . 10 132 . 53 166 93 44 83 164 1 38 . . . 20 14 28 Gun 714 | . 10 112 . 8 164 93 44 83 160 1 29 . . . 10 . . Cannon 120 | . . 20 . 43 2 . . . . . 8 . . . 8 14 25 Launcher 10 | . . . . 2 . . . . 3 . . . . . 2 . 3 Special 2 | . . . . . . . . . 1 . 1 . . . . . . Kinetic 709 | . 10 90 . 36 166 93 44 83 160 . . . . . 16 7 4 Thermal 107 | . . 25 . 15 . . . . . . 37 . . . 2 7 21 Explosive 5 | . . . . . . . . . . . . . . . 2 . 3 Electromagnetic 23 | . . 17 . 2 . . . . 3 1 . . . . . . . Robot Hit Streak 17 | . 5 17 . 6 9 14 7 7 8 7 9 . . . 4 5 8 Robot Miss Streak 9 | . 1 5 . 9 8 4 3 3 4 . 3 . . . 2 3 1 Penetration Max 1 | . . . . . 1 1 1 1 1 . . . . . . . . Secondary Targets 11 | . . 1 . . 4 1 3 . 2 . . . . . . . . Max Gunslinging Chain 2 | . . 1 . . 2 1 1 . 1 . . . . . . . . Shots Hit Robots 477 | . 7 86 . 26 84 48 30 45 87 1 34 . . . 14 5 10 Core Hits 284 | . 5 24 . 29 45 30 16 24 50 1 26 . . . 12 3 19 Critical Kills 17 | . . . . . 6 2 1 1 6 . 1 . . . . . . Critical Parts Destroyed 19 | . . . . . 2 5 2 1 9 . . . . . . . . Critical Strikes 41 | . . . . . 8 8 4 4 15 . 1 . . . 1 . . Meltdown 1 | . . . . . . . . . . . 1 . . . . . . Destroy 39 | . . . . . 8 8 4 4 15 . . . . . . . . Blast 1 | . . . . . . . . . . . . . . . 1 . . Melee Attacks . | . . . . . . . . . . . . . . . . . . Impact . | . . . . . . . . . . . . . . . . . . Slashing . | . . . . . . . . . . . . . . . . . . Piercing . | . . . . . . . . . . . . . . . . . . Sneak Attacks . | . . . . . . . . . . . . . . . . . . Combat Hostiles . | . . . . . . . . . . . . . . . . . . Follow-up Attacks . | . . . . . . . . . . . . . . . . . . Damage Inflicted 18531 | . 60 1381 . 1631 2942 1663 1070 1464 3385 24 1077 . . . 1109 503 2222 Guns 11981 | . 60 996 . 49 2850 1663 1070 1464 2749 22 870 . . . 188 . . Cannons 2386 | . . 385 . 563 . . . . . . 207 . . . 442 370 419 Explosions 4159 | . . . . 1019 92 . . . 633 . . . . . 479 133 1803 Melee . | . . . . . . . . . . . . . . . . . . Ramming 5 | . . . . . . . . . 3 2 . . . . . . . Kinetic 12123 | . 60 889 . 449 2850 1663 1070 1464 2749 . . . . . 586 259 84 Thermal 2148 | . . 298 . 228 34 . . . 21 . 1077 . . . 44 111 335 Explosive 3148 | . . . . 733 . . . . . . . . . . 479 133 1803 Electromagnetic 1107 | . . 194 . 221 58 . . . 612 22 . . . . . . . Impact . | . . . . . . . . . . . . . . . . . . Slashing . | . . . . . . . . . . . . . . . . . . Piercing . | . . . . . . . . . . . . . . . . . . Highest Corruption 26 | . . . . . 3 3 3 3 26 . . . . . . 6 9 Average Corruption 3 | . . . . . 2 3 3 2 11 . . . . . . 4 5 Corruption Purged 3 | . . . . . . . . 3 . . . . . . . . . Corruption Blocked . | . . . . . . . . . . . . . . . . . . Effects 60 | . . . . . 9 18 17 4 8 . . . . . . . 4 Message Errors 13 | . . . . . 2 4 2 2 1 . . . . . . . 2 Matter Fused 17 | . . . . . 4 4 6 . 3 . . . . . . . . Heat Flow Errors 5 | . . . . . . 1 3 1 . . . . . . . . . Energy Discharges 8 | . . . . . 2 3 3 . . . . . . . . . . Data Loss (minor) 7 | . . . . . 1 3 2 . . . . . . . . . 1 Data Loss (major) 1 | . . . . . . 1 . . . . . . . . . . . Misfires 1 | . . . . . . 1 . . . . . . . . . . . Alerts 4 | . . . . . . 1 1 . 1 . . . . . . . 1 Weapon Failures 4 | . . . . . . . . 1 3 . . . . . . . . Overload Shots . | . . . . . . . . . . . . . . . . . . Overflow Damage 438 | . . . . 24 . . . . 21 . . . . . 115 46 232 Projectiles 171 | . . . . . . . . . . . . . . . 89 33 49 Explosions 267 | . . . . 24 . . . . 21 . . . . . 26 13 183 Melee . | . . . . . . . . . . . . . . . . . . Knockbacks 14 | . . 6 . 2 . . . . . . . . . . 4 2 . Impact . | . . . . . . . . . . . . . . . . . . Kinetic 14 | . . 6 . 2 . . . . . . . . . . 4 2 . Secondary . | . . . . . . . . . . . . . . . . . . Self-Inflicted Damage 467 | . . . . 52 148 . . . 96 1 . . . . . 121 49 Shots 6 | . . . . 1 2 . . . 1 . . . . . . 1 1 Rammed 2 | . . . . . . . . . 1 1 . . . . . . . Targets Rammed 2 | . . . . . . . . . 1 1 . . . . . . . Kicked . | . . . . . . . . . . . . . . . . . . Crushed . | . . . . . . . . . . . . . . . . . . Highest Temperature 612 | . 12 26 . 612 9 177 186 162 195 . 126 . . . . 79 123 Average Temperature 98 | . 8 13 . 281 9 116 76 103 107 . 35 . . . . 31 40 Received Heat Transfer 1661 | . 42 384 . 156 135 78 . . 342 36 284 . . . 9 48 147 Effects 11 | . . . . 11 . . . . . . . . . . . . . Shutdowns 1 | . . . . 1 . . . . . . . . . . . . . Energy Bleed 1 | . . . . 1 . . . . . . . . . . . . . Interference 5 | . . . . 5 . . . . . . . . . . . . . Damage (core) 4 | . . . . 4 . . . . . . . . . . . . . Siege Activations 1 | . . . . . . . . . 1 . . . . . . . . Total Turns 35 | . . . . . . . . . 35 . . . . . . . . Longest Duration 35 | . . . . . . . . . 35 . . . . . . . . Martial Activations . | . . . . . . . . . . . . . . . . . . Shielding Activations . | . . . . . . . . . . . . . . . . . . Robots Disrupted 1 | . . . . . . . . . . 1 . . . . . . . Combat Hostiles 1 | . . . . . . . . . . 1 . . . . . . . Robots Corrupted . | . . . . . . . . . . . . . . . . . . Combat Hostiles . | . . . . . . . . . . . . . . . . . . Parts Fried . | . . . . . . . . . . . . . . . . . . Impact Corruptions . | . . . . . . . . . . . . . . . . . . Robots Melted 2 | . . . . . . . . . . . 2 . . . . . . Combat Hostiles 2 | . . . . . . . . . . . 2 . . . . . . Parts Melted 4 | . . . . . . 1 . . . . 2 . . . . . 1 Heat Transferred 3014 | . . 373 . 350 50 . . . 50 . 1746 . . . 75 74 296 Parts Sabotaged . | . . . . . . . . . . . . . . . . . . Parts Stolen . | . . . . . . . . . . . . . . . . . . Parts Stripped . | . . . . . . . . . . . . . . . . . . Power Chain Reactions 3 | . . . . 1 1 . . . 1 . . . . . . . . Alert | -11 -10 -10 -8 -6 -5 -5 -5 -5 -5 -4 -4 -4 -4 -3 -3 -3 -2 ------- Run | Yrd Mat Sub Scr Fac Fac Ext Cet Arc Hub Fac Upp Upp Zhi Pro Res Tes Res Maximum Alert Level 4 | . . . . 1 2 4 3 1 3 1 . . . . 1 1 2 Low Security (%) 38 | 100 100 . . 93 78 . . . 11 . . . . . 79 25 77 Level 1 30 | . . . . 6 15 43 . 100 52 100 . . . . 20 74 21 Level 2 14 | . . . . . 5 32 36 . 3 . . . . . . . . Level 3 16 | . . . . . . 18 63 . 31 . . . . . . . . Level 4 1 | . . . . . . 5 . . . . . . . . . . . Level 5 . | . . . . . . . . . . . . . . . . . . High Security . | . . . . . . . . . . . . . . . . . . Max Security . | . . . . . . . . . . . . . . . . . . Peak Influence 1118 | . 40 . . 270 550 1118 841 360 796 389 . . . . 333 321 401 Initial 616 | . . . . . 128 265 616 322 111 389 . . . . . 181 174 Average 340 | . 5 . . 35 132 532 727 331 451 361 . . . . 112 219 195 Influence Increases 6398 | . 40 300 . 430 796 1391 621 276 993 . 170 90 . . 423 330 538 Destroy 0b10 Robot/C 2200 | . 40 60 . 160 400 560 260 80 300 . 80 . . . 140 20 100 Destroy 0b10 Robot/NC 270 | . . . . 35 40 30 10 35 65 . 5 . . . . 10 40 Destroy Leader 260 | . . . . 32 54 64 10 . 66 . 10 . . . 10 . 14 Allied During Kill 881 | . . . . . . 542 270 31 38 . . . . . . . . Successful Hack 60 | . . . . . 4 28 . . . . . . . . . 10 18 Disable Machine 630 | . . . . 180 120 . . 60 150 . . . . . . 105 15 Destroy Structure 1017 | . . . . 23 148 122 56 70 314 . . . . . 48 80 156 Partial Spotted 30 | . . . . . . . . . . . . . . . 15 15 . Lose Combat Pursuer 1050 | . . 240 . . 30 45 15 . 60 . 75 90 . . 210 90 195 Influence Decreases 6006 | . 40 300 . 168 516 831 918 763 515 477 457 122 . . 100 342 457 Entered New Map 2399 | . . . . . 134 277 486 483 207 407 119 7 . . . 142 137 Time Decay 2937 | . 40 260 . 158 372 494 392 140 198 50 278 105 . . 70 190 190 Lost Part 410 | . . 40 . 10 10 . . . 90 20 60 10 . . 30 10 130 Lost Ally 260 | . . . . . . 60 40 140 20 . . . . . . . . Squads Dispatched 29 | . . . . 5 9 3 . . 3 . . . . . 1 2 6 Investigation 6 | . . . . 1 2 1 . . 1 . . . . . . . 1 Extermination 7 | . . . . 1 2 . . . . . . . . . 1 1 2 Reinforcement 14 | . . . . 2 5 2 . . 1 . . . . . . 1 3 Assault 1 | . . . . . . . . . 1 . . . . . . . . Garrison 1 | . . . . 1 . . . . . . . . . . . . . Intercept . | . . . . . . . . . . . . . . . . . . Searches Triggered . | . . . . . . . . . . . . . . . . . . Construction Impeded 7 | . . . . . 3 2 . . 1 . . . . . . . 1 Haulers Reinforced 2 | . . . . . 1 . . . . . . . . . . . 1 Active Scanning Responses . | . . . . . . . . . . . . . . . . . . Cargo Convoy Interrupts 1 | . . . . . . . . . . . . . . . . . 1 Stealth | -11 -10 -10 -8 -6 -5 -5 -5 -5 -5 -4 -4 -4 -4 -3 -3 -3 -2 --------- Run | Yrd Mat Sub Scr Fac Fac Ext Cet Arc Hub Fac Upp Upp Zhi Pro Res Tes Res Distress Signals 16 | . . . . 2 3 2 2 . 3 . . . . . . 1 3 Communications Jammed . | . . . . . . . . . . . . . . . . . . Distress Signals . | . . . . . . . . . . . . . . . . . . Times Spotted 259 | . 3 15 . 13 28 30 15 13 32 3 7 7 . 3 21 16 53 Peak Tracking Total 28 | . 2 2 . 4 5 7 5 1 8 2 4 5 . 3 8 7 28 Tactical Retreats 33 | . . 7 . . 2 3 1 . 3 . 2 3 . . 5 3 4 Traps | -11 -10 -10 -8 -6 -5 -5 -5 -5 -5 -4 -4 -4 -4 -3 -3 -3 -2 ------- Run | Yrd Mat Sub Scr Fac Fac Ext Cet Arc Hub Fac Upp Upp Zhi Pro Res Tes Res Traps Triggered 11 | . . . . . 3 4 . . 1 . . . . . . . 3 Indirectly 2 | . . . . . 1 . . . 1 . . . . . . . . Trap Hack Attempts . | . . . . . . . . . . . . . . . . . . Triggered . | . . . . . . . . . . . . . . . . . . Disarmed . | . . . . . . . . . . . . . . . . . . Reprogrammed . | . . . . . . . . . . . . . . . . . . Reused . | . . . . . . . . . . . . . . . . . . Traps Extracted . | . . . . . . . . . . . . . . . . . . Installed . | . . . . . . . . . . . . . . . . . . Triggered . | . . . . . . . . . . . . . . . . . . Machines | -11 -10 -10 -8 -6 -5 -5 -5 -5 -5 -4 -4 -4 -4 -3 -3 -3 -2 ---------- Run | Yrd Mat Sub Scr Fac Fac Ext Cet Arc Hub Fac Upp Upp Zhi Pro Res Tes Res Machines Disabled 43 | . . 1 . 12 8 . . 4 10 . . . . . . 7 1 Max in Single Turn 6 | . . 1 . 6 3 . . 2 3 . . . . . . 2 1 Network Hub 1 | . . . . . . . . . 1 . . . . . . . . Machines Repaired . | . . . . . . . . . . . . . . . . . . Machines Dismantled . | . . . . . . . . . . . . . . . . . . Machines Sabotaged . | . . . . . . . . . . . . . . . . . . Overloaded Fab Kills . | . . . . . . . . . . . . . . . . . . Hacking | -11 -10 -10 -8 -6 -5 -5 -5 -5 -5 -4 -4 -4 -4 -3 -3 -3 -2 --------- Run | Yrd Mat Sub Scr Fac Fac Ext Cet Arc Hub Fac Upp Upp Zhi Pro Res Tes Res Machines Accessed 15 | . . . 1 1 1 5 1 . . . . . 4 . . 1 1 Terminals 8 | . . . . . 1 5 1 . . . . . . . . . 1 Fabricators . | . . . . . . . . . . . . . . . . . . Repair Stations 1 | . . . . . . . . . . . . . . . . 1 . Recycling Units 1 | . . . . 1 . . . . . . . . . . . . . Scanalyzers . | . . . . . . . . . . . . . . . . . . Garrison Access . | . . . . . . . . . . . . . . . . . . Total Hacks 33 | . . . 1 1 1 7 1 . . . . . 17 . . 3 2 Successful 27 | . . . 1 1 1 4 . . . . . . 17 . . 2 1 Failed 6 | . . . . . . 3 1 . . . . . . . . 1 1 Catastrophic 1 | . . . . . . 1 . . . . . . . . . . . Database Lockouts . | . . . . . . . . . . . . . . . . . . Manual 1 | . . . . 1 . . . . . . . . . . . . . Terminals 11 | . . . . . 1 7 1 . . . . . . . . . 2 Fabricators . | . . . . . . . . . . . . . . . . . . Repair Stations 3 | . . . . . . . . . . . . . . . . 3 . Recycling Units 1 | . . . . 1 . . . . . . . . . . . . . Scanalyzers . | . . . . . . . . . . . . . . . . . . Garrison Access . | . . . . . . . . . . . . . . . . . . Terminal Hacks 24 | . . . 1 . 1 4 . . . . . . 17 . . . 1 Record 5 | . . . . . . . . . . . . . 5 . . . . Part Schematic 4 | . . . . . . . . . . . . . 4 . . . . Robot Analysis 4 | . . . . . . . . . . . . . 4 . . . . Prototype ID Bank 4 | . . . . . . . . . . . . . 4 . . . . Open Door 5 | . . . . . 1 4 . . . . . . . . . . . Fabricator Index 1 | . . . . . . . . . . . . . . . . . 1 Proto ID Catalog 1 | . . . 1 . . . . . . . . . . . . . . Fabricator Hacks . | . . . . . . . . . . . . . . . . . . Repair Station Hacks 2 | . . . . . . . . . . . . . . . . 2 . Scan Component 1 | . . . . . . . . . . . . . . . . 1 . Repair 1 | . . . . . . . . . . . . . . . . 1 . Recycling Unit Hacks . | . . . . . . . . . . . . . . . . . . Scanalyzer . | . . . . . . . . . . . . . . . . . . Garrison Access Hacks . | . . . . . . . . . . . . . . . . . . Unauthorized Hacks 1 | . . . . 1 . . . . . . . . . . . . . Terminals . | . . . . . . . . . . . . . . . . . . Fabricators . | . . . . . . . . . . . . . . . . . . Repair Stations . | . . . . . . . . . . . . . . . . . . Recycling Units 1 | . . . . 1 . . . . . . . . . . . . . Fedlink 1 | . . . . 1 . . . . . . . . . . . . . Scanalyzers . | . . . . . . . . . . . . . . . . . . Garrison Access . | . . . . . . . . . . . . . . . . . . Data Cores Recovered 2 | . . . . . . 1 . . 1 . . . . . . . . Used . | . . . . . . . . . . . . . . . . . . Hacking Detections 5 | . . . . . . 2 1 . . . . . . . . 1 1 Full Trace Events 1 | . . . . . . 1 . . . . . . . . . . . Feedback Events . | . . . . . . . . . . . . . . . . . . Feedback Blocked . | . . . . . . . . . . . . . . . . . . Robot Schematics Acquired . | . . . . . . . . . . . . . . . . . . Robots Built . | . . . . . . . . . . . . . . . . . . Authchips . | . . . . . . . . . . . . . . . . . . Time . | . . . . . . . . . . . . . . . . . . Total Robot Build Rating . | . . . . . . . . . . . . . . . . . . Part Schematics Acquired 4 | . . . . . . . . . . . . . 4 . . . . Parts Built . | . . . . . . . . . . . . . . . . . . Authchips . | . . . . . . . . . . . . . . . . . . Time . | . . . . . . . . . . . . . . . . . . Total Part Build Rating . | . . . . . . . . . . . . . . . . . . Part Studies Acquired . | . . . . . . . . . . . . . . . . . . Parts Repaired 1 | . . . . . . . . . . . . . . . . 1 . Time 44 | . . . . . . . . . . . . . . . . 44 . Parts Recycled . | . . . . . . . . . . . . . . . . . . Recycled Matter . | . . . . . . . . . . . . . . . . . . Retrieved Matter . | . . . . . . . . . . . . . . . . . . Retrieved Components . | . . . . . . . . . . . . . . . . . . Parts Scanalyzed . | . . . . . . . . . . . . . . . . . . Part Schematics Acquired . | . . . . . . . . . . . . . . . . . . Parts Damaged . | . . . . . . . . . . . . . . . . . . Bothacking | -11 -10 -10 -8 -6 -5 -5 -5 -5 -5 -4 -4 -4 -4 -3 -3 -3 -2 ------------ Run | Yrd Mat Sub Scr Fac Fac Ext Cet Arc Hub Fac Upp Upp Zhi Pro Res Tes Res Used RIF Installer . | . . . . . . . . . . . . . . . . . . Robots Hacked . | . . . . . . . . . . . . . . . . . . Non-combat . | . . . . . . . . . . . . . . . . . . Combat . | . . . . . . . . . . . . . . . . . . Robot Hacks Applied . | . . . . . . . . . . . . . . . . . . Relay Couplers Released . | . . . . . . . . . . . . . . . . . . Fabnet Peak Effective % . | . . . . . . . . . . . . . . . . . . Robots Rewired 14 | . . . . . . 14 . . . . . . . . . . . Allies Hacked . | . . . . . . . . . . . . . . . . . . Hacks Repelled . | . . . . . . . . . . . . . . . . . . Allies | -11 -10 -10 -8 -6 -5 -5 -5 -5 -5 -4 -4 -4 -4 -3 -3 -3 -2 -------- Run | Yrd Mat Sub Scr Fac Fac Ext Cet Arc Hub Fac Upp Upp Zhi Pro Res Tes Res Total Allies 21 | . . . . . . 20 1 . . . . . . . . . . Largest Group 14 | . . . . . . 14 14 11 1 . . . . . . . . Highest-Rated Group 516 | . . . . . . 516 513 513 136 . . . . . . . . Highest-Rated Ally 159 | . . . . . . 159 159 136 136 . . . . . . . . Total Orders 3 | . . . . . . . 2 . 1 . . . . . . . . STAY 2 | . . . . . . . 1 . 1 . . . . . . . . FOLLOW 1 | . . . . . . . 1 . . . . . . . . . . Ally Attacks 199 | . . . . . . 110 52 15 22 . . . . . . . . Total Damage 5642 | . . . . . . 2512 1192 576 1362 . . . . . . . . Kills 44 | . . . . . . 22 11 4 7 . . . . . . . . Allies Corrupted 1 | . . . . . . . . . 1 . . . . . . . . Allies Melted . | . . . . . . . . . . . . . . . . . . Intel | -11 -10 -10 -8 -6 -5 -5 -5 -5 -5 -4 -4 -4 -4 -3 -3 -3 -2 ------- Run | Yrd Mat Sub Scr Fac Fac Ext Cet Arc Hub Fac Upp Upp Zhi Pro Res Tes Res Active Infowar (turns) 5323 | . . . 535 584 1100 1307 920 292 394 . . . . . . . 191 Optics 4594 | . . . . 581 1100 1307 920 292 394 . . . . . . . . Sensors 4189 | . . . . 248 1100 1307 920 292 322 . . . . . . . . IFF 191 | . . . . . . . . . . . . . . . . . 191 Machine Analysis 1664 | . . . 535 584 545 . . . . . . . . . . . . Jamming 1 | . . . . . . . . . . . . . . . . . 1 Robot Analysis Total 4 | . . . . . . . . . . . . . 4 . . . . Derelict Logs Recovered 6 | . . 1 4 . . . . . . . 1 . . . . . . Drone Launches . | . . . . . . . . . . . . . . . . . . Drone Recoveries . | . . . . . . . . . . . . . . . . . . Exploration | -11 -10 -10 -8 -6 -5 -5 -5 -5 -5 -4 -4 -4 -4 -3 -3 -3 -2 ------------- Run | Yrd Mat Sub Scr Fac Fac Ext Cet Arc Hub Fac Upp Upp Zhi Pro Res Tes Res Turns Passed 12158 | 76 257 2694 2248 584 1100 1307 920 292 412 108 600 428 125 91 143 380 393 Spaces Moved 8562 | 42 112 1472 1842 411 663 658 450 126 186 130 464 447 153 253 294 449 410 Core 865 | 1 . . . . . . . . 15 130 337 255 . . . . 127 Treads 605 | 41 112 318 . . 1 . 133 . . . . . . . . . . Legs 411 | . . . . . . . . . . . 127 192 66 . . 24 2 Wheels 5341 | . . 1154 1842 411 662 658 317 126 171 . . . . . . . . Hover . | . . . . . . . . . . . . . . . . . . Flight 1340 | . . . . . . . . . . . . . 87 253 294 425 281 Fastest Speed 15 | 50 160 105 105 96 105 135 135 135 50 50 50 50 29 29 15 17 24 Average Speed 118 | 157 212 165 119 112 133 135 164 135 128 70 103 90 72 31 24 56 72 Slowest Speed 475 | 160 240 320 130 130 320 135 240 135 135 100 260 190 475 99 99 240 260 Overloaded Moves 148 | . . . . . . . . . . . . . . . 51 69 28 Propulsion Burnouts . | . . . . . . . . . . . . . . . . . . Robots Hopped 23 | . . . . . . . . . . . . . . . 2 3 18 Potential Cave-ins 6 | . . . . . 4 . . . 2 . . . . . . . . Cave-ins Triggered . | . . . . . . . . . . . . . . . . . . Teleports 1 | . . . . . . . . . . . . . . . . 1 . Exploration Rate (%) 45 | 5 29 60 84 19 24 84 71 86 31 2 61 66 60 52 8 57 22 Regions Visited 17 Branch Regions 11 Pre-discovered Areas 5 | . . 1 1 . . . . . . . . . 3 . . . . Known Exits Taken 6 | . . . . 1 1 1 1 1 . . . . . . . 1 . Unknown Exits Taken 11 | 1 1 1 1 . . . . . 1 1 1 1 1 1 1 . . Scrap Searched 16 | . . 6 4 . . . . . . . 1 3 . 2 . . . Spaces Dug 23 | . . . . 6 5 . . . . . . . . . . 2 10 Terrain Destroyed 665 | . . 1 . 23 81 78 17 49 263 . 1 . . . 44 46 62 Melee . | . . . . . . . . . . . . . . . . . . Projectile 325 | . . 1 . 8 65 78 17 49 85 . 1 . . . 3 3 15 AOE 340 | . . . . 15 16 . . . 178 . . . . . 41 43 47 Terrain Rammed . | . . . . . . . . . . . . . . . . . . Walls Destroyed . | . . . . . . . . . . . . . . . . . . Machines Disabled . | . . . . . . . . . . . . . . . . . . Actions | -11 -10 -10 -8 -6 -5 -5 -5 -5 -5 -4 -4 -4 -4 -3 -3 -3 -2 --------- Run | Yrd Mat Sub Scr Fac Fac Ext Cet Arc Hub Fac Upp Upp Zhi Pro Res Tes Res Total 9959 | 49 123 1602 1893 492 783 1020 613 195 251 144 542 468 164 264 336 555 465 Wait 496 | . . 28 . 7 24 105 103 43 1 10 40 12 . 10 8 64 41 Move 8501 | 41 111 1471 1841 410 662 657 449 125 185 129 463 446 152 252 289 442 376 Hop 21 | . . . . . . . . . . . . . . . 2 3 16 Pick Up 107 | 2 5 16 23 16 10 . 19 2 4 . 1 1 1 . 3 3 1 Fast Attach 79 | 6 1 . 4 4 11 . 3 2 2 2 6 7 7 1 6 13 4 Attach 45 | . . 8 1 10 4 . . . 6 . 4 1 1 . 4 3 3 Detach 15 | . . . . 1 . . . . . . 2 1 . . 3 3 5 Swap 26 | . . 7 1 5 8 1 1 . 3 . . . . . . . . Drop 119 | . 1 2 23 12 21 1 27 2 4 1 . . 3 1 3 14 4 Fire 315 | . 5 70 . 27 43 23 11 21 45 1 26 . . . 18 10 15 Melee . | . . . . . . . . . . . . . . . . . . Ram 2 | . . . . . . . . . 1 1 . . . . . . . Kick . | . . . . . . . . . . . . . . . . . . Crush . | . . . . . . . . . . . . . . . . . . Escape Stasis 41 | . . . . . . 41 . . . . . . . . . . . Rewire 192 | . . . . . . 192 . . . . . . . . . . . Trap . | . . . . . . . . . . . . . . . . . . Miscellaneous . | . . . . . . . . . . . . . . . . . . Route ------- -11/Scrapyard -10/Materials (discovered 2 exits: [*Mat] / [*Sub]) -10/Subcaves (discovered 3 exits: [*Mat] / [*Rec] / *Scr) -8/Scraptown (discovered 2 exits: *Fac x2) -6/Factory -5/Factory -5/Extension (discovered 2 exits: [*Fac] / *Cet) -5/Cetus (discovered 2 exits: [*Fac] / *Arc) -5/Archives (discovered 3 exits: [*Fac] / *Hub x2) -5/Hub_04(d) -4/Factory -4/Upper Caves -4/Upper Caves (discovered 2 exits: [*Res] / *Zhi) -4/Zhirov -3/Proximity Caves -3/Research (discovered 2 exits: Res / *Tes) -3/Testing -2/Research History --------- Turn | Location | Event 11 | -11/Scrapyard | Discovered new exit (range 14) 77 | -11/Scrapyard | Entered Materials 250 | -10/Materials | Discovered new exit (range 10) 310 | -10/Materials | Build established: Mutant 310 | -10/Materials | Discovered new exit (range 11) 334 | -10/Materials | Entered Subcaves 335 | -10/Subcaves | Approached by a straggling Scientist 337 | -10/Subcaves | Learned 2 Materials zone layouts 522 | -10/Subcaves | Learned location of Zion (-7) 522 | -10/Subcaves | Met a Zionite searching for "candidates" 1184 | -10/Subcaves | Discovered new exit (range 13) 1195 | -10/Subcaves | Core integrity fell below 50% 1572 | -10/Subcaves | Shifting Twisted Machinery released Sub. Optics 1597 | -10/Subcaves | Shifting Twisted Machinery released Mak. Laser 1711 | -10/Subcaves | Scientist uncovered a shortcut to Scraptown 2331 | -10/Subcaves | A swath of the cavern ceiling suddenly collapsed 2604 | -10/Subcaves | Disturbed a concealed Subdweller 2734 | -10/Subcaves | Shifting Twisted Machinery released Sub. Optics 2866 | -10/Subcaves | Discovered new exit (range 11) 2881 | -10/Subcaves | Shifting Twisted Machinery released Sub. Monowheel 2885 | -10/Subcaves | Core integrity fell below 20% 3028 | -10/Subcaves | Entered Scraptown 3118 | -8/Scraptown | Visited Cyclists 3138 | -8/Scraptown | Visited UFD Registry 3138 | -8/Scraptown | Registered with UFD as "Cryoslasher" 3275 | -8/Scraptown | Visited Botcube Research 3279 | -8/Scraptown | Found Lrg. Botcube 3304 | -8/Scraptown | Visited Infowarlord's Domain 3311 | -8/Scraptown | Found Spectral Analyzer 3335 | -8/Scraptown | Visited Derelict Rescue Squad 3343 | -8/Scraptown | Found DRS Beacon 3365 | -8/Scraptown | Visited Observation Area 3379 | -8/Scraptown | Visited Science Testing Area 3393 | -8/Scraptown | Visited Scrap Suit Storage 3408 | -8/Scraptown | Visited Junk Repository 3450 | -8/Scraptown | Visited Junk Repository 3476 | -8/Scraptown | Visited Science Guys 3516 | -8/Scraptown | Visited Curators Association 3801 | -8/Scraptown | Heard Great Nut preacher, LISTEN AND RECITE! 3810 | -8/Scraptown | Scanned Subdweller tech in exchange for log data 3814 | -8/Scraptown | Learned location of Testing (-3) 3815 | -8/Scraptown | Learned Factory security intel 3816 | -8/Scraptown | Learned location of 1 exit from Research 3817 | -8/Scraptown | Learned Research interactive machine intel 3897 | -8/Scraptown | Visited Awakened 4263 | -8/Scraptown | Discovered new exit (range 11) 4347 | -8/Scraptown | Visited The Evicted 4360 | -8/Scraptown | Visited IN-MT5's Study 5202 | -8/Scraptown | Met Optimus 5202 | -8/Scraptown | Accepted into 0bPrime 5273 | -8/Scraptown | Discovered new exit (range 3) 5276 | -8/Scraptown | Entered Factory 5276 | -6/Factory | Evolved 8 slots: Propulsion x2, Utility x5, Weapon x1 5445 | -6/Factory | Core integrity fell below 50% 5502 | -6/Factory | Loaded intel: 8 recycling unit locations 5845 | -6/Factory | Garrison activated, responded to threat 5854 | -6/Factory | Discovered new exit (range 5) 5858 | -6/Factory | Identified exit to Factory 5860 | -6/Factory | Entered another Factory area 5860 | -5/Factory | Evolved 2 slots: Utility x1, Weapon x1 5965 | -5/Factory | Build established: Skirmisher 6949 | -5/Factory | Discovered new exit (range 10) 6959 | -5/Factory | Identified exit to Extension 6960 | -5/Factory | Entered Extension 7020 | -5/Extension | Rescued a captive Derelict 7021 | -5/Extension | Rescued a captive Derelict 7122 | -5/Extension | Rescued A7 7325 | -5/Extension | Rescued a captive Derelict 7326 | -5/Extension | Rescued a captive Derelict 7517 | -5/Extension | Build established: Commander-Skirmisher 7672 | -5/Extension | Spotted B-75 Beast 7688 | -5/Extension | Destroyed B-75 Beast 7693 | -5/Extension | Spotted B-75 Beast 7708 | -5/Extension | Allies destroyed B-75 Beast 8092 | -5/Extension | Rescued a captive Derelict 8214 | -5/Extension | Discovered new exit (range 10) 8215 | -5/Extension | Discovered new exit (range 6) 8222 | -5/Extension | Identified exit to Cetus 8267 | -5/Extension | Entered Cetus 8267 | -5/Cetus | Accompanied by 14 allies (A7) 8272 | -5/Cetus | Acquired a Cetus Manufacturing Module code from A7 8278 | -5/Cetus | Spotted Cetus Guard 8278 | -5/Cetus | Spotted Cetus Guard 8284 | -5/Cetus | Spotted Cetus Guard 8285 | -5/Cetus | Destroyed Cetus Guard 8287 | -5/Cetus | Spotted Cetus Guard 8299 | -5/Cetus | Destroyed Cetus Guard 8306 | -5/Cetus | Destroyed Cetus Guard 8317 | -5/Cetus | Allies destroyed Cetus Guard 8345 | -5/Cetus | Lost 4 allies 8441 | -5/Cetus | Discovered new exit (range 23) 8493 | -5/Cetus | Spotted Cetus Guard 8493 | -5/Cetus | Spotted Cetus Guard 8494 | -5/Cetus | Spotted Cetus Guard 8498 | -5/Cetus | Spotted Cetus Guard 8504 | -5/Cetus | Allies destroyed Cetus Guard 8504 | -5/Cetus | Discovered new exit (range 23) 8513 | -5/Cetus | Destroyed Cetus Guard 8521 | -5/Cetus | Allies destroyed Cetus Guard 8523 | -5/Cetus | Allies destroyed Cetus Guard 8548 | -5/Cetus | Met Revision 17 8629 | -5/Cetus | Build established: Commander-Tank 8960 | -5/Cetus | Lrg. Botcube activated 8986 | -5/Cetus | Lrg. Botcube completed mutation into treaded form, armed with 4 guns. 9017 | -5/Cetus | Security sweep announced 9060 | -5/Cetus | Identified exit to Archives 9187 | -5/Cetus | Entered Archives 9187 | -5/Archives | Accompanied by 11 allies (A7) 9232 | -5/Archives | Discovered new exit (range 22) 9264 | -5/Archives | Lost 8 allies 9280 | -5/Archives | Discovered new exit (range 19) 9282 | -5/Archives | Discovered new exit (range 23) 9469 | -5/Archives | Identified exit to Hub_04(d) 9479 | -5/Archives | Entered Hub_04(d) 9479 | -5/Hub_04(d) | Accompanied by 1 ally 9722 | -5/Hub_04(d) | Discovered new exit (range 5) 9733 | -5/Hub_04(d) | Build established: Scavenger-Tank 9745 | -5/Hub_04(d) | Network Hub disabled 9771 | -5/Hub_04(d) | Spotted Lightning 9773 | -5/Hub_04(d) | Spotted Lightning 9777 | -5/Hub_04(d) | Spotted Lightning 9779 | -5/Hub_04(d) | First assault squad dispatched 9785 | -5/Hub_04(d) | Attached CPS modules to *big c guard. 9808 | -5/Hub_04(d) | System corruption reached 10% 9841 | -5/Hub_04(d) | Lost 5 parts (2n2u1w) 9846 | -5/Hub_04(d) | Destroyed Lightning 9873 | -5/Hub_04(d) | Released all parts (11) 9875 | -5/Hub_04(d) | Found Lrg. Botcube 9884 | -5/Hub_04(d) | Core integrity fell below 50% 9891 | -5/Hub_04(d) | Entered Factory 9891 | -4/Factory | Evolved 2 slots: Propulsion x2 9891 | -4/Factory | Discovered new exit (range 12) 9902 | -4/Factory | Lost 4 parts (1u3w) 9999 | -4/Factory | Entered Upper Caves 10001 | -4/Upper Caves | Attracted the attention of an 0b10 checkpoint 10065 | -4/Upper Caves | Attached CPS modules to XY-61M(r). 10397 | -4/Upper Caves | Build established: Gunner 10489 | -4/Upper Caves | Lost 6 parts (1p1n1u3w) 10588 | -4/Upper Caves | Discovered new exit (range 10) 10599 | -4/Upper Caves | Entered another Upper Caves area 10599 | -4/Upper Caves | Discovered new exit (range 9) 10652 | -4/Upper Caves | Core integrity fell below 50% 10697 | -4/Upper Caves | Attracted the attention of an 0b10 checkpoint 11015 | -4/Upper Caves | Discovered new exit (range 11) 11027 | -4/Upper Caves | Entered Zhirov 11027 | -4/Zhirov | Discovered new exit (range 3) 11037 | -4/Zhirov | Build established: Derelict-Mutant 11049 | -4/Zhirov | Met Zhirov 11087 | -4/Zhirov | Found Alien Artifact 11087 | -4/Zhirov | Identified Integrated Dissipator 11087 | -4/Zhirov | Installed Integrated Dissipator, increased core heat dissipation (+20) 11133 | -4/Zhirov | Found Alien Artifact 11142 | -4/Zhirov | Learned location of Quarantine (-2) 11142 | -4/Zhirov | Learned location of Command (-1) 11144 | -4/Zhirov | Zhirov requested help retrieving the SGEMP Prototype 11152 | -4/Zhirov | Entered Proximity Caves 11186 | -3/Proximity Caves | Spotted B-86 Titan 11213 | -3/Proximity Caves | Attracted the attention of an 0b10 checkpoint 11228 | -3/Proximity Caves | Discovered new exit (range 7) 11243 | -3/Proximity Caves | Entered Research 11243 | -3/Research | Evolved 2 slots: Power x1, Propulsion x1 11244 | -3/Research | Identified exit to Research 11245 | -3/Research | Loaded intel: 43 interactive machine locations 11354 | -3/Research | Found Fusion Bomb Launcher 11379 | -3/Research | Discovered new exit (range 16) 11386 | -3/Research | Entered Testing 11393 | -3/Testing | Found Prototype Energy Cannon 11393 | -3/Testing | Identified Null Cannon 11449 | -3/Testing | Repaired Fusion Reactor 11590 | -3/Testing | Found Prototype Energy Cannon 11590 | -3/Testing | Identified Cld. Nova Cannon 11658 | -3/Testing | Identified Transdimensional Reconstructor 11658 | -3/Testing | Warped through subspace 11658 | -3/Testing | Spotted Alpha 7 11659 | -3/Testing | Spotted Striker 11659 | -3/Testing | Spotted Striker 11662 | -3/Testing | Stole the SGEMP Prototype 11738 | -3/Testing | Discovered exit to Research (range 15) 11740 | -3/Testing | Found Prototype Launcher 11740 | -3/Testing | Identified Com. Tesla Bomb Launcher 11746 | -3/Testing | Found Prototype Ballistic Cannon 11746 | -3/Testing | Identified Omega Cannon 11766 | -3/Testing | Entered Research 11766 | -2/Research | Evolved 2 slots: Propulsion x2 12034 | -2/Research | Build established: Hacker-Gunner 12060 | -2/Research | Spotted B-90 Cyclops 12093 | -2/Research | Spotted B-90 Cyclops 12119 | -2/Research | Lost 8 parts (1p5n2u) 12137 | -2/Research | Core integrity fell below 50% 12143 | -2/Research | Cargo convoy interrupted 12144 | -2/Research | Spotted Executioner 12149 | -2/Research | Core integrity fell below 20% 12159 | -2/Research | Destroyed by G-73 Enforcer with Phase Gun Last Messages --------------- 12144_ P-80 Master unfolds itself. 12144_ Executioner unfolds itself. 12144_ I-47 Archangel unfolds itself. 12145_ Slug penetrates Wall. 12146_ Slug penetrates P-80 Master. 12147_ KJ 12149_ Triggered Alarm Trap. 12149_ An alarm sounds. 12149_ ALERT: Alarm triggered, dispatching investigation squad. 12151_ P-80 Master resets I-47 Archangel, system corruption cleaned. 12152_ Penetrated by Slug. 12152_ Slug penetrates Wall. 12157_ P-80 Master knocked back. 12158_ Penetrated by Slug. 12158_ Slug penetrates Wall. 12159_ Slug penetrates Door. 12159_ Penetrated by Slug. 12159_ Slug penetrates I-47 Archangel. 12159_ Penetrated by Slug. Map ----- +----------------------------------------------------+ | ???????????????????????# #??# #??# # # | | ???????????????????????# #??# #### # # | | ???????????????????????# #??# + # # | | ?????? ?#?????????????# #??# #### " " # # | | ??????? # ????????????# ####/##### " " # # | | ???????? + ???????????# # ## ""G"" # # | | ?????????# ??????????# " ## # # | | ?????????# ?????????# # [[ ## / + | | ?????????# ########## # [! ############+# | | ?????????# # [! #????????? | | ?????????# h # #???????# ! | | ?????????# h# #???????# == | | ?????????# h #########???????# == | | ?????????#########/##### #???????????????# == | | ??????????# # #???????????????# | | ??????????# #p #???????????????###### | | ??????????# """ #Ex #????????????????????? | | ??????????# "" """ hh #????????????????????? | | ??????????# "" """ # % #????????????????????? | | ??????????# "" # i ;????????????????????? | | ??????????# S #p #????????????????????? | | ??????????# "" """ # #????????????????????? | | ??????????# "" """ #i ########?????????????? | | ??????????# "" """ # #?????????????? | | ??????????# p p# #?????????????? | | ??????????# ; @ #?????????????? | | ??????????############## g +?????????????? | | ???????????????????????##;##### #?????????????? | | ???????????????????????? ?????? #?????????????? | | ???????????????????????? ??????????????????????? | | ???????????????????????? ""??????????????????????? | | ???????????????????????? ""??????????????????????? | | ??????????????????????? """?????????????????????? | | ??????????????????????? ?????????????????????? | | ??????????????????????? ??????????????????????? | | ??????????????????????? ????????????????????????? | | ??????????????????????" ????????????????????????? | | ??????????????????????" ????????????????????????? | | ?????????????????????? ?????????????????????????? | | ?????????????????????? ?????????????????????????? | | ???????????????????????#?????????????????????????? | | ?????????????????????????????????????????????????? | | ?????????????????????????????????????????????????? | | ?????????????????????????????????????????????????? | | ?????????????????????????????????????????????????? | | ?????????????????????????????????????????????????? | | ?????????????????????????????????????????????????? | | ?????????????????????????????????????????????????? | | ?????????????????????????????????????????????????? | | ?????????????????????????????????????????????????? | +----------------------------------------------------+ Best States ------------- Heat Dissipation 104 Energy Generation 25 Energy Capacity 350 Matter Stores 300 Matter Capacity 300 Sight Range 24 Robot Scan Range 16 Terrain Scan Density 10 Base Temperature (-) 200 Armor Coverage 450 Utility Shielding 66 Weapon Shielding 90 Evasion (%) 67 Targeting Accuracy 6 Melee Accuracy 6 Target Analysis 6 Core Analysis 6 Recoil Reduction 4 Offensive Hacking 24 Item Schematics ----------------- Assault Drone Bay | -4/Zhirov | Free Exp. Optical Array | -4/Zhirov | Free Exp. Heat Sink | -4/Zhirov | Free Imp. Arc Thrower | -4/Zhirov | Free Robot Schematics ------------------ None Fabricated ------------ Nothing Repaired ---------- Fusion Reactor | 16% | -3/Testing Studied --------- None Alien Tech Used ----------------- Integrated Dissipator Transdimensional Reconstructor Achievements -------------- None Challenges ------------ None Game ------ Seed AuthchipGaussInsulator Manual? 0 Play Time 01:19:32 Cumulative 415.7 hours Start 2025.12.16 @ 21:51:43 End 2025.12.19 @ 19:30:53 Sessions 5 Manual Loads 0 Difficulty Rogue Special Mode None Game No. 377 Rogue 341 Adventurer 36 Explorer 0 Win Type - Total 16 Types 7/0/9/0/0/0/0/0/0/0 Lore% 72 Gallery% 85 Achievement% 63 Wizard Run 0 Options --------- Layout 0 ASCII 0 Keyboard 0 Movement Mouse Keybinds 0 Fullscreen 1 Font 18/SmallcapsGlow Map View 76x50 Zoom Use 0% Tactical HUD 1 Map Filters NONE Filters NONE Steam 1 RUN: c2c611da-cc0c-45bb-b0a0-c0cc27d0b790